fUST/lending_fUST_20251001
["ID","MTS","AMOUNT","RATE_DAILY","PERIOD"]
[388594975,1759248651012,-160.0,0.00022511,2]
[388594976,1759248651021,-160.0,0.00022511,2]
[388594978,1759248651030,-160.0,0.00022511,2]
[388594980,1759248651040,-233.92491258,0.00022511,2]
[388594983,1759248651049,-189.44378083,0.00022511,2]
[388594985,1759248651059,-275.77867381,0.00022636,2]
[388594987,1759248651069,-500.0,0.00022734,2]
[388594988,1759248651080,-500.0,0.00022734,2]
[388594990,1759248651090,-621.88,0.00022734,2]
[388594992,1759248651100,-500.0,0.00022734,2]
[388594994,1759248651111,-281.81,0.00022735,2]
[388594996,1759248651120,-199.0,0.00022735,2]
[388594998,1759248651129,-500.0,0.00022735,2]
[388595000,1759248651138,-500.0,0.00022735,2]
[388595002,1759248651147,-283.1955913,0.00022736,2]
[388595004,1759248651158,-500.0,0.00022736,2]
[388595006,1759248651167,-500.0,0.00022736,2]
[388595008,1759248651176,-500.0,0.00022736,2]
[388595010,1759248651185,-500.0,0.00022736,2]
[388595012,1759248651195,-500.0,0.00022736,2]
[388595014,1759248651204,-500.0,0.00022736,2]
[388595016,1759248651213,-500.0,0.00022736,2]
[388595018,1759248651222,-500.0,0.00022736,2]
[388595020,1759248651234,-500.0,0.00022736,2]
[388595022,1759248651243,-500.0,0.00022736,2]
[388595024,1759248651252,-500.0,0.00022736,2]
[388595026,1759248651261,-500.0,0.00022736,2]
[388595028,1759248651270,-500.0,0.00022736,2]
[388595030,1759248651279,-500.0,0.00022736,2]
[388595032,1759248651288,-500.0,0.00022736,2]
[388595034,1759248651298,-500.0,0.00022736,2]
[388595036,1759248651306,-500.0,0.00022736,2]
[388595038,1759248651316,-261.51,0.00022736,2]
[388595040,1759248651325,-414.45546412,0.00022736,2]
[388595042,1759248651334,-500.0,0.00022738,2]
[388595044,1759248651343,-500.0,0.00022738,2]
[388595046,1759248651352,-500.0,0.00022803,2]
[388595048,1759248651361,-500.0,0.00022803,2]
[388595050,1759248651370,-160.0,0.00023,2]
[388595052,1759248651380,-500.0,0.00023008,2]
[388595054,1759248651389,-500.0,0.00023008,2]
[388595056,1759248651399,-500.0,0.00023008,2]
[388595058,1759248651408,-500.0,0.00023009,2]
[388595060,1759248651417,-500.0,0.00023009,2]
[388595062,1759248651426,-500.0,0.0002301,2]
[388595064,1759248651435,-500.0,0.0002301,2]
[388595066,1759248651444,-500.0,0.0002301,2]
[388595068,1759248651453,-500.0,0.0002301,2]
[388595070,1759248651462,-500.0,0.0002301,2]
[388595072,1759248651471,-500.0,0.0002301,2]
[388595074,1759248651480,-500.0,0.0002301,2]
[388595076,1759248651489,-500.0,0.0002301,2]
[388595078,1759248651499,-500.0,0.0002301,2]
[388595080,1759248651509,-500.0,0.0002301,2]
[388595082,1759248651518,-500.0,0.0002301,2]
[388595084,1759248651527,-547.1213072,0.0002301,2]
[388595086,1759248651536,-500.0,0.0002301,2]
[388595088,1759248651545,-500.0,0.0002301,2]
[388595090,1759248651556,-500.0,0.0002301,2]
[388595092,1759248651569,-500.0,0.0002301,2]
[388595094,1759248651578,-500.0,0.0002301,2]
[388595096,1759248651587,-500.0,0.00023011,2]
[388595098,1759248651596,-480.0,0.00023011,2]
[388595100,1759248651607,-500.0,0.00023011,2]
[388595102,1759248651616,-500.0,0.00023011,2]
[388595104,1759248651625,-500.0,0.00023012,2]
[388595106,1759248651637,-500.0,0.00023012,2]
[388595109,1759248651647,-593.7781974,0.00023134,2]
[388595110,1759248651656,-500.0,0.00023134,2]
[388595112,1759248651665,-500.0,0.00023134,2]
[388595115,1759248651675,-502.03063295,0.00023134,2]
[388595116,1759248651684,-500.0,0.00023134,2]
[388595118,1759248651693,-500.0,0.00023134,2]
[388595120,1759248651704,-500.0,0.00023134,2]
[388595122,1759248651713,-500.0,0.00023134,2]
[388595124,1759248651723,-500.0,0.00023198,2]
[388595126,1759248651732,-500.0,0.00023282,2]
[388595128,1759248651741,-500.0,0.00023282,2]
[388595130,1759248651751,-271.08,0.00023282,2]
[388595133,1759248651761,-500.0,0.00023283,2]
[388595135,1759248651770,-500.0,0.00023283,2]
[388595137,1759248651780,-500.0,0.00023284,2]
[388595138,1759248651789,-500.0,0.00023284,2]
[388595140,1759248651798,-512.23787467,0.00023284,2]
[388595142,1759248651808,-500.0,0.00023284,2]
[388595144,1759248651817,-500.0,0.00023284,2]
[388595146,1759248651826,-500.0,0.00023284,2]
[388595148,1759248651836,-500.0,0.00023284,2]
[388595151,1759248651846,-500.0,0.00023284,2]
[388595153,1759248651856,-500.0,0.00023284,2]
[388595154,1759248651865,-500.0,0.00023284,2]
[388595156,1759248651875,-500.0,0.00023284,2]
[388595159,1759248651884,-500.0,0.00023284,2]
[388595161,1759248651894,-500.0,0.00023284,2]
[388595163,1759248651904,-500.0,0.00023284,2]
[388595165,1759248651917,-500.0,0.00023284,2]
[388595166,1759248651927,-500.0,0.00023284,2]
[388595168,1759248651937,-500.0,0.00023285,2]
[388595171,1759248651948,-500.0,0.00023285,2]
[388595173,1759248651957,-530.32,0.00023285,2]
[388595174,1759248651967,-500.0,0.00023286,2]
[388595176,1759248651977,-500.0,0.00023286,2]
[388595179,1759248651987,-1000.0,0.00023351,2]
[388595181,1759248651996,-768.7714569,0.00023443,2]
[388595183,1759248652006,-519.54,0.0002355,3]
[388595184,1759248652016,-500.0,0.00023556,2]
[388595186,1759248652025,-500.0,0.00023556,2]
[388595188,1759248652035,-500.0,0.00023557,2]
[388595191,1759248652045,-500.0,0.00023557,2]
[388595192,1759248652054,-500.0,0.00023558,2]
[388595194,1759248652064,-500.0,0.00023558,2]
[388595196,1759248652073,-500.0,0.00023558,2]
[388595199,1759248652083,-582.83626728,0.00023558,2]
[388595200,1759248652092,-500.0,0.00023558,2]
[388595202,1759248652102,-500.0,0.00023558,2]
[388595204,1759248652112,-500.0,0.00023558,2]
[388595206,1759248652121,-456.23941405,0.00023558,2]
[388595208,1759248652131,-500.0,0.00023558,2]
[388595210,1759248652140,-500.0,0.00023558,2]
[388595212,1759248652150,-500.0,0.00023558,2]
[388595214,1759248652159,-500.0,0.00023558,2]
[388595216,1759248652169,-500.0,0.00023558,2]
[388595219,1759248652179,-500.0,0.00023558,2]
[388595220,1759248652188,-500.0,0.00023558,2]
[388595222,1759248652198,-372.82,0.00023559,2]
[388595225,1759248652207,-500.0,0.00023559,2]
[388595227,1759248652217,-1000.0,0.00023682,2]
[388595228,1759248652226,-1246.88,0.00023821,3]
[388595230,1759248652236,-500.0,0.0002383,2]
[388595233,1759248652245,-570.51,0.0002383,2]
[388595234,1759248652255,-500.0,0.00023831,2]
[388595237,1759248652264,-500.0,0.00023831,2]
[388595238,1759248652273,-500.0,0.00023832,2]
[388595241,1759248652283,-500.0,0.00023832,2]
[388595242,1759248652293,-500.0,0.00023832,2]
[388595245,1759248652302,-500.0,0.00023832,2]
[388595247,1759248652312,-500.0,0.00023832,2]
[388595250,1759248652332,-500.0,0.00023832,2]
[388595252,1759248652342,-500.0,0.00023832,2]
[388595254,1759248652352,-500.0,0.00023832,2]
[388595256,1759248652361,-500.0,0.00023832,2]
[388595258,1759248652371,-500.0,0.00023832,2]
[388595260,1759248652380,-500.0,0.00023832,2]
[388595262,1759248652390,-500.0,0.00023832,2]
[388595264,1759248652399,-500.0,0.00023832,2]
[388595266,1759248652409,-500.0,0.00023833,2]
[388595268,1759248652419,-500.0,0.00023899,2]
[388595270,1759248652429,-4109.0,0.00024,12]
[388595272,1759248652439,-864.0,0.00024004,20]
[388595274,1759248652449,-500.0,0.00024104,2]
[388595276,1759248652458,-180.23,0.00024105,2]
[388595278,1759248652468,-500.0,0.00024105,2]
[388595280,1759248652478,-500.0,0.00024106,2]
[388595282,1759248652487,-500.0,0.00024106,2]
[388595284,1759248652497,-500.0,0.00024106,2]
[388595286,1759248652506,-500.0,0.00024106,2]
[388595288,1759248652517,-500.0,0.00024106,2]
[388595291,1759248652528,-500.0,0.00024106,2]
[388595293,1759248652538,-500.0,0.00024106,2]
[388595295,1759248652549,-500.0,0.00024106,2]
[388595297,1759248652562,-500.0,0.00024106,2]
[388595299,1759248652574,-500.0,0.00024106,2]
[388595301,1759248652583,-500.0,0.00024106,2]
[388595303,1759248652592,-500.0,0.00024106,2]
[388595305,1759248652605,-221.54422649,0.00024106,2]
[388595322,1759248652761,-500.0,0.00020269,2]
[388595324,1759248652770,-389.43071999,0.00020543,2]
[388596213,1759248769233,270.0,0.0002489,120]
[388596214,1759248769729,270.0,0.0002488,120]
[388596215,1759248770180,270.0,0.0002487,120]
[388596216,1759248811214,280.2,0.000192,2]
[388596217,1759248812161,280.2,0.00033444,120]
[388596223,1759248889504,214.0,0.0002489,120]
[388596224,1759248889938,214.0,0.0002488,120]
[388596225,1759248890373,214.0,0.0002487,120]
[388596230,1759249129355,189.0,0.0002489,120]
[388596231,1759249129801,189.0,0.0002488,120]
[388596232,1759249130250,189.0,0.0002487,120]
[388596238,1759249345903,187.0,0.00024195,120]
[388596239,1759249347204,187.0,0.00025405,120]
[388596240,1759249348440,187.0,0.00026675,120]
[388596241,1759249349763,187.0,0.00028009,120]
[388596247,1759249527920,1000.0,0.00033435,120]
[388596249,1759249549719,1000.0,0.00033435,120]
[388596251,1759249560742,1000.0,0.00033435,120]
[388596253,1759249580736,1000.0,0.00033435,120]
[388596254,1759249589819,1000.0,0.00033435,120]
[388596255,1759249609909,700.0,0.00028,120]
[388596256,1759249612463,1000.0,0.00033435,120]
[388596257,1759249653946,500.0,0.00028,120]
[388596261,1759249708870,900.0,0.00028,120]
[388596266,1759249804388,200.0,0.00033435,60]
[388596269,1759249818596,200.0,0.00033435,60]
[388596295,1759249832329,-1365.64238689,0.00019512,2]
[388597409,1759249848984,-1907.97724917,0.00019512,2]
[388597411,1759249848993,-280.2,0.000196,2]
[388597413,1759249849003,-242.359072,0.00019786,2]
[388597415,1759249849012,-202.30582437,0.00020267,2]
[388597417,1759249849021,-300.0,0.00020268,2]
[388597419,1759249849030,-1200.0,0.00020268,2]
[388597421,1759249849039,-500.0,0.00020269,2]
[388597423,1759249849048,-500.0,0.00020269,2]
[388597425,1759249849057,-500.0,0.00020269,2]
[388597427,1759249849066,-500.0,0.00020269,2]
[388597429,1759249849075,-500.0,0.00020269,2]
[388597431,1759249849084,-238.58336957,0.00020269,2]
[388597433,1759249849093,-480.0,0.00020269,2]
[388597435,1759249849102,-500.0,0.00020543,2]
[388597437,1759249849111,-500.0,0.00020543,2]
[388597439,1759249849120,-500.0,0.00020543,2]
[388597441,1759249849129,-500.0,0.00020543,2]
[388597443,1759249849138,-500.0,0.00020543,2]
[388597445,1759249849147,-529.86536967,0.00020815,2]
[388597447,1759249849157,-480.0,0.00020815,2]
[388597449,1759249849166,-417.89064033,0.00020815,2]
[388597451,1759249849175,-500.0,0.00020815,2]
[388597453,1759249849187,-500.0,0.00020817,2]
[388597455,1759249849196,-500.0,0.00020817,2]
[388597457,1759249849205,-500.0,0.00020817,2]
[388597459,1759249849214,-500.0,0.00020817,2]
[388597461,1759249849223,-500.0,0.00020817,2]
[388597463,1759249849233,-500.0,0.00021089,2]
[388597465,1759249849242,-239.86,0.00021089,2]
[388597467,1759249849251,-500.0,0.0002109,2]
[388597469,1759249849260,-500.0,0.0002109,2]
[388597471,1759249849270,-500.0,0.0002109,2]
[388597473,1759249849279,-500.0,0.0002109,2]
[388597475,1759249849288,-500.0,0.0002109,2]
[388597477,1759249849297,-480.0,0.0002109,2]
[388597479,1759249849306,-500.0,0.0002109,2]
[388597481,1759249849315,-500.0,0.0002109,2]
[388597483,1759249849325,-500.0,0.0002109,2]
[388597485,1759249849335,-500.0,0.0002109,2]
[388597487,1759249849344,-500.0,0.0002109,2]
[388597490,1759249849354,-500.0,0.0002109,2]
[388597492,1759249849364,-500.0,0.00021091,2]
[388597494,1759249849373,-500.0,0.00021091,2]
[388597496,1759249849382,-500.0,0.00021091,2]
[388597498,1759249849391,-500.0,0.00021091,2]
[388597500,1759249849400,-500.0,0.00021091,2]
[388597502,1759249849409,-170.36376177,0.00021265,2]
[388597504,1759249849418,-500.0,0.00021363,2]
[388597506,1759249849428,-500.0,0.00021364,2]
[388597508,1759249849438,-500.0,0.00021364,2]
[388597510,1759249849447,-500.0,0.00021364,2]
[388597512,1759249849456,-500.0,0.00021364,2]
[388597514,1759249849466,-566.65,0.00021364,2]
[388597515,1759249849475,-500.0,0.00021364,2]
[388597517,1759249849484,-500.0,0.00021364,2]
[388597519,1759249849494,-174.87,0.00021364,2]
[388597521,1759249849503,-500.0,0.00021364,2]
[388597523,1759249849512,-500.0,0.00021364,2]
[388597525,1759249849522,-500.0,0.00021364,2]
[388597527,1759249849531,-286.13984564,0.00021365,2]
[388597529,1759249849540,-500.0,0.00021365,2]
[388597531,1759249849550,-500.0,0.00021365,2]
[388597533,1759249849559,-500.0,0.00021365,2]
[388597535,1759249849567,-500.0,0.00021637,2]
[388597537,1759249849577,-500.0,0.00021638,2]
[388597540,1759249849586,-500.0,0.00021638,2]
[388597542,1759249849596,-500.0,0.00021638,2]
[388597544,1759249849609,-500.0,0.00021638,2]
[388597546,1759249849618,-500.0,0.00021638,2]
[388597548,1759249849627,-500.0,0.00021638,2]
[388597550,1759249849636,-500.0,0.00021638,2]
[388597552,1759249849645,-500.0,0.00021638,2]
[388597554,1759249849654,-500.0,0.00021638,2]
[388597556,1759249849663,-500.0,0.00021639,2]
[388597558,1759249849672,-534.4,0.00021639,2]
[388597560,1759249849681,-500.0,0.00021639,2]
[388597562,1759249849690,-500.0,0.00021911,2]
[388597564,1759249849699,-162.48,0.00021912,2]
[388597566,1759249849709,-500.0,0.00021912,2]
[388597568,1759249849719,-500.0,0.00021912,2]
[388597570,1759249849728,-500.0,0.00021912,2]
[388597572,1759249849737,-500.0,0.00021912,2]
[388597574,1759249849746,-500.0,0.00021912,2]
[388597576,1759249849756,-500.0,0.00021912,2]
[388597578,1759249849765,-500.0,0.00021912,2]
[388597580,1759249849774,-500.0,0.00021912,2]
[388597582,1759249849784,-500.0,0.00021913,2]
[388597584,1759249849793,-622.68,0.00021913,2]
[388597586,1759249849802,-180.0,0.00022,2]
[388597588,1759249849811,-500.0,0.00022185,2]
[388597590,1759249849820,-500.0,0.00022186,2]
[388597592,1759249849830,-622.49526925,0.00022186,2]
[388597593,1759249849839,-375.04145683,0.00022186,2]
[388597595,1759249849848,-500.0,0.00022186,2]
[388597597,1759249849857,-500.0,0.00022186,2]
[388597599,1759249849867,-500.0,0.00022186,2]
[388597601,1759249849878,-230.87,0.00022186,2]
[388597604,1759249849887,-500.0,0.00022186,2]
[388597605,1759249849898,-500.0,0.00022187,2]
[388597607,1759249849907,-501.77234977,0.0002239,2]
[388597609,1759249849918,-176.22,0.00022459,2]
[388597611,1759249849927,-500.0,0.0002246,2]
[388597613,1759249849937,-500.0,0.0002246,2]
[388597615,1759249849946,-360.85533717,0.0002246,2]
[388597617,1759249849958,-500.0,0.0002246,2]
[388597620,1759249849967,-500.0,0.0002246,2]
[388597622,1759249849977,-602.70114027,0.00022461,2]
[388597624,1759249849986,-160.0,0.00022493,2]
[388597626,1759249849995,-160.0,0.00022493,2]
[388597628,1759249850004,-189.44378083,0.00022495,2]
[388597629,1759249850014,-233.92491258,0.00022495,2]
[388597631,1759249850023,-546.63251205,0.00022734,2]
[388597633,1759249850032,-153.95,0.00022734,2]
[388597635,1759249850041,-500.0,0.00022734,2]
[388597637,1759249850050,-500.0,0.00022734,2]
[388597639,1759249850060,-492.56201249,0.00023008,2]
[388597641,1759249850068,-284.65928001,0.00023008,2]
[388597643,1759249850078,-250.0,0.00023069,2]
[388597645,1759249850086,-500.0,0.00023078,2]
[388597647,1759249850096,-453.32265631,0.00023078,2]
[388597649,1759249850104,-500.0,0.00023078,2]
[388597651,1759249850113,-501.40212099,0.00023079,2]
[388597653,1759249850123,-501.07296496,0.00023079,2]
[388597655,1759249850131,-501.24232443,0.00023079,2]
[388597657,1759249850141,-500.0,0.00023079,2]
[388597659,1759249850150,-500.0,0.00023079,2]
[388597661,1759249850159,-341.95662106,0.00023079,2]
[388597663,1759249850167,-501.20766255,0.00023079,2]
[388597665,1759249850176,-501.83698182,0.00023079,2]
[388597667,1759249850187,-400.0,0.00023079,2]
[388597669,1759249850196,-504.85673294,0.00023079,2]
[388597671,1759249850205,-500.0,0.00023079,2]
[388597673,1759249850214,-500.0,0.00023113,2]
[388597675,1759249850223,-170.36376177,0.00023279,2]
[388597677,1759249850231,-500.0,0.00023287,2]
[388597679,1759249850240,-500.0,0.00023563,2]
[388597681,1759249850250,-500.0,0.00023563,2]
[388597683,1759249850260,-500.0,0.00023563,2]
[388597685,1759249850269,-500.0,0.00023563,2]
[388597687,1759249850278,-500.0,0.00023563,2]
[388597689,1759249850287,-500.0,0.00023563,2]
[388597691,1759249850296,-500.0,0.00023563,2]
[388597693,1759249850305,-500.0,0.00023563,2]
[388597695,1759249850314,-492.6002318,0.00023563,2]
[388597697,1759249850325,-250.0,0.00023563,2]
[388597699,1759249850334,-250.0,0.00023563,2]
[388597701,1759249850343,-250.0,0.00023563,2]
[388597703,1759249850352,-250.0,0.00023563,2]
[388597705,1759249850361,-250.0,0.00023563,2]
[388597707,1759249850370,-250.0,0.00023563,2]
[388597709,1759249850379,-250.0,0.00023563,2]
[388597711,1759249850388,-250.0,0.00023563,2]
[388597713,1759249850397,-250.0,0.00023563,2]
[388597715,1759249850406,-384.3857285,0.0002378,2]
[388597718,1759249850416,-4144.0,0.00024,2]
[388597720,1759249850426,-280.2,0.000241,2]
[388597722,1759249850436,-496.68071013,0.00024106,2]
[388597723,1759249850446,-500.0,0.00024106,2]
[388597726,1759249850455,-166.67223437,0.00024106,2]
[388597728,1759249850464,-500.0,0.00024108,2]
[388597730,1759249850473,-200.0,0.00024109,2]
[388597731,1759249850482,-200.0,0.00024109,2]
[388597733,1759249850491,-200.0,0.00024109,2]
[388597735,1759249850500,-200.0,0.00024109,2]
[388597737,1759249850509,-200.0,0.00024109,2]
[388597739,1759249850518,-200.0,0.00024109,2]
[388597741,1759249850527,-200.0,0.00024109,2]
[388597743,1759249850537,-200.0,0.00024109,2]
[388597745,1759249850547,-200.0,0.00024109,2]
[388597747,1759249850556,-200.0,0.00024109,2]
[388597749,1759249850565,-177.89736308,0.00024109,2]
[388597751,1759249850574,-500.0,0.00024379,2]
[388597753,1759249850583,-500.0,0.00024382,2]
[388597755,1759249850592,-280.2,0.000245,2]
[388597757,1759249850601,-500.0,0.00024653,2]
[388597759,1759249850610,-500.0,0.00024656,2]
[388597761,1759249850620,-200.0,0.00024658,15]
[388597763,1759249850629,-380.0,0.00024658,2]
[388597765,1759249850638,-600.0,0.00024867,20]
[388597767,1759249850648,-281.38,0.000249,2]
[388597769,1759249850657,-500.0,0.00024927,2]
[388597771,1759249850667,-500.0,0.0002493,2]
[388597773,1759249850676,-150.0,0.00025137,2]
[388597776,1759249850686,-557.01223448,0.00025188,2]
[388597778,1759249850696,-557.01223448,0.00025188,2]
[388597780,1759249850705,-557.01223448,0.00025188,2]
[388597782,1759249850714,-500.0,0.00025201,2]
[388597784,1759249850724,-500.0,0.00025204,2]
[388597786,1759249850733,-170.36376177,0.00025292,2]
[388597788,1759249850742,-557.01223448,0.0002534,4]
[388597790,1759249850751,-557.01223448,0.0002534,4]
[388597792,1759249850761,-230.19,0.00025475,2]
[388597794,1759249850770,-500.0,0.00025478,2]
[388597796,1759249850779,-557.01223448,0.00025491,6]
[388597797,1759249850788,-557.01223448,0.00025491,6]
[388597800,1759249850798,-557.01223448,0.00025491,6]
[388597802,1759249850808,-557.01223448,0.00025491,6]
[388597803,1759249850817,-979.0,0.00025626,2]
[388597806,1759249850827,-630.0,0.00025626,2]
[388597808,1759249850836,-410.0,0.00025626,2]
[388597810,1759249850845,-427.919,0.00025626,2]
[388597812,1759249850854,-557.01223448,0.00025643,8]
[388597813,1759249850864,-557.01223448,0.00025643,8]
[388597816,1759249850879,-557.01223448,0.00025643,8]
[388597818,1759249850888,-500.0,0.00025752,2]
[388597820,1759249850898,-557.01223448,0.00025794,10]
[388597822,1759249850907,-557.01223448,0.00025794,10]
[388597824,1759249850918,-557.01223448,0.00025794,10]
[388597826,1759249850927,-500.0,0.00026026,2]
[388597828,1759249850937,-221.89712808,0.00026027,4]
[388597830,1759249850948,-151.00034053,0.00026075,2]
[388597832,1759249850958,-255.0,0.000263,10]
[388597834,1759249850968,-500.0,0.000263,2]
[388597835,1759249850978,-500.0,0.00026574,2]
[388597837,1759249850987,-3958.5,0.00026829,10]
[388597839,1759249850997,-3298.75,0.00026829,10]
[388597841,1759249851006,-2748.96,0.00026829,10]
[388597843,1759249851015,-185623.465123,0.00026839,2]
[388597845,1759249851024,-500.0,0.00026848,2]
[388597847,1759249851034,-1428.924661,0.00026849,2]
[388597849,1759249851043,-500.0,0.00027122,2]
[388597852,1759249851053,-170.36376177,0.00027306,2]
[388597853,1759249851062,-720.0,0.00027353,30]
[388597855,1759249851071,-384.3857285,0.00027363,2]
[388597857,1759249851080,-500.0,0.00027396,2]
[388597859,1759249851089,-500.0,0.0002767,2]
[388597861,1759249851098,-500.0,0.00027944,2]
[388597863,1759249851107,-150.0,0.00028137,2]
[388597865,1759249851116,-500.0,0.00028218,2]
[388597867,1759249851126,-383.82610709,0.00028492,2]
[388597869,1759249851135,-979.0,0.00028626,2]
[388597871,1759249851144,-630.0,0.00028626,2]
[388597873,1759249851156,-410.0,0.00028626,2]
[388597875,1759249851164,-410.0,0.00028626,2]
[388597891,1759249851293,-170.36376177,0.00029319,2]
[388597893,1759249851303,-800.0,0.0003,120]
[388597895,1759249851313,-864.0,0.00030089,30]
[388597897,1759249851322,-384.498635,0.00030137,120]
[388597899,1759249851331,-49643.66968786,0.000306,2]
[388597901,1759249851341,-339.98,0.00030684,14]
[388597903,1759249851350,-384.3857285,0.00030946,2]
[388597905,1759249851359,-339.98,0.00031232,15]
[388597907,1759249851368,-170.36376177,0.00031333,2]
[388597909,1759249851377,-979.0,0.00031626,2]
[388597911,1759249851387,-630.0,0.00031626,2]
[388597913,1759249851396,-410.0,0.00031626,2]
[388597915,1759249851405,-410.0,0.00031626,2]
[388597917,1759249851414,-339.98,0.0003178,16]
[388597919,1759249851424,-191.873,0.00031835,2]
[388597921,1759249851434,-200.0,0.00032,120]
[388597923,1759249851443,-200.0,0.00032,120]
[388597925,1759249851453,-159.8945,0.00032235,2]
[388597927,1759249851462,-339.98,0.00032328,17]
[388597929,1759249851471,-412.0,0.000324,120]
[388597931,1759249851481,-1428.924661,0.00032646,2]
[388597933,1759249851490,-151.0,0.000328,12]
[388597935,1759249851499,-339.98,0.00032876,18]
[388597937,1759249851509,-173.81618423,0.00032877,2]
[388597939,1759249851518,-900.0,0.00033,120]
[388597941,1759249851527,-17196.27321775,0.00033,2]
[388597943,1759249851536,-161.0,0.00033,14]
[388597945,1759249851545,-1000.0,0.00033097,30]
[388597947,1759249851554,-200.0,0.000331,7]
[388597949,1759249851563,-10851.92949744,0.00033346,2]
[388597951,1759249851572,-170.36376177,0.00033346,2]
[388597953,1759249851582,-168.0,0.00033413,2]
[388597955,1759249851590,-339.98,0.00033424,19]
[388597957,1759249851600,-150.0,0.00033435,2]
[388597959,1759249851609,-1657.0019498,0.00033435,35]
[388597961,1759249851618,-250.0,0.00033435,10]
[388597963,1759249851627,-250.0,0.00033435,10]
[388597965,1759249851636,-250.0,0.00033435,10]
[388597967,1759249851646,-250.000001,0.00033435,10]
[388597969,1759249851655,-13366111.4622876,0.00033435,20]
[388597971,1759249851665,-189.44378083,0.0003344,10]
[388597973,1759249851674,-233.92491258,0.0003344,10]
[388597975,1759249851686,-2367.28197582,0.00033446,4]
[388597977,1759249851695,-500.0,0.00033473,5]
[388597979,1759249851704,-500.0,0.00033473,5]
[388597981,1759249851713,-500.0,0.00033473,5]
[388597983,1759249851722,-150.0,0.00033473,5]
[388597985,1759249851732,-500.0,0.00033473,5]
[388597986,1759249851741,-500.0,0.00033473,5]
[388597988,1759249851750,-1287.81,0.000335,14]
[388597990,1759249851759,-339.98,0.00033972,20]
[388597992,1759249851769,-200.0,0.00034,120]
[388597994,1759249851777,-1000.0,0.00034021,5]
[388597996,1759249851787,-1000.0,0.00034021,5]
[388597998,1759249851796,-901.03875953,0.00034021,5]
[388598000,1759249851805,-202.53748691,0.00034021,5]
[388598002,1759249851814,-772.85351119,0.00034021,5]
[388598004,1759249851823,-1000.0,0.00034021,5]
[388598006,1759249851831,-500.0,0.00034435,120]
[388598007,1759249851840,-339.98,0.0003452,21]
[388598008,1759249851850,-161.0,0.00034521,30]
[388598009,1759249851858,-384.3857285,0.00034528,2]
[388598010,1759249851867,-979.0,0.00034626,2]
[388598011,1759249851877,-410.0,0.00034626,2]
[388598012,1759249851887,-410.0,0.00034626,2]
[388598013,1759249851896,-400.0,0.000348,120]
[388598014,1759249851904,-467.88768,0.00034849,120]
[388598015,1759249851912,-160.55491231,0.00035,15]
[388598016,1759249851923,-266.853,0.00035,5]
[388598017,1759249851932,-339.98,0.00035068,22]
[388598018,1759249851941,-384.498635,0.0003516,120]
[388598019,1759249851952,-4000.45646413,0.0003543,2]